bitfinex/quotes_ETHUSD_20220105
["timestamp","ask_amount","ask_price","bid_price","bid_amount"]
[1641415537492,0.22,3615.6,3614.8,0.54631886]
[1641415537691,0.22,3615.6,3615.2,7.85]
[1641415537692,0.00123684,3615.6,3615.2,7.85]
[1641415537891,3.64921998,3616.1,3615.2,0.679]
[1641415538091,3.64921998,3616.1,3615.3,0.00113684]
[1641415538326,0.03640579,3617.5,3615.4,0.01245245]
[1641415538327,0.00284212,3616.0,3615.4,0.01245245]
[1641415538732,0.0022737,3615.9,3615.4,0.01245245]
[1641415538930,0.0022737,3615.9,3615.8,1.01013811]
[1641415539132,0.9197,3617.4,3615.5,0.53541286]
[1641415539133,0.6598227,3617.4,3615.5,0.53541286]
[1641415539331,0.69141,3616.9,3615.5,0.53541286]
[1641415539532,0.00113684,3616.1,3615.6,0.00170527]
[1641415540131,0.00113684,3616.1,3615.7,1.40497175]
[1641415540931,0.00113684,3616.1,3615.8,9.34202825]
[1641415541133,3.684e-05,3616.1,3616.0,0.01297593]
[1641415541334,3.684e-05,3616.1,3616.0,16.52542159]
[1641415541632,3.684e-05,3616.1,3616.0,17.52542159]
[1641415541836,0.737849,3618.4,3616.5,1.38208]
[1641415542088,0.737849,3618.4,3618.1,1.40722651]
[1641415542278,0.01250532,3618.3,3618.1,2.09252651]
[1641415542677,0.737849,3618.4,3618.1,2.09252651]
[1641415542678,0.0119369,3618.2,3618.1,2.09252651]
[1641415542878,0.328,3620.3,3618.1,2.09252651]
[1641415543078,1.328,3620.3,3618.1,2.09252651]
[1641415543281,0.00682108,3619.4,3619.2,1.22591774]
[1641415543478,0.00682108,3619.4,3618.0,0.69082]
[1641415543778,0.00682108,3619.4,3617.6,0.13819997]
[1641415543779,0.01895017,3619.3,3617.6,0.13819997]
[1641415543978,0.01895017,3619.3,3616.5,6.27621311]
[1641415543979,0.328,3619.2,3616.5,6.27621311]
[1641415544179,0.33368423,3619.2,3617.7,0.00284212]
[1641415544378,0.00511581,3619.1,3616.6,0.00909478]
[1641415544583,0.328,3619.0,3617.3,0.55795044]
[1641415544879,0.3,3618.2,3617.4,1.38835044]
[1641415545178,0.69128,3618.0,3617.5,0.00397897]
[1641415545378,1.31928,3618.0,3617.5,0.00397897]
[1641415545577,1.31928,3618.0,3617.4,1.38380305]
[1641415545829,1.31928,3618.0,3616.8,2.76887988]
[1641415545830,7.85,3617.8,3616.8,2.76887988]
[1641415546032,0.328,3617.7,3616.8,2.76887988]
[1641415546332,0.328,3617.7,3615.7,1.01328557]
[1641415546333,0.6915575,3617.4,3616.9,0.00341054]
[1641415546530,1.0,3617.6,3617.0,0.43303084]
[1641415546531,1.01956,3617.3,3617.0,0.43303084]
[1641415546731,0.3,3617.5,3617.0,0.43303084]
[1641415546935,0.328,3617.6,3617.1,0.00227369]
[1641415547137,1.328,3617.6,3617.1,0.00227369]
[1641415547435,1.74226566,3617.4,3617.1,0.00227369]
[1641415548535,0.00113685,3617.7,3617.1,3.12967822]
[1641415548936,0.00113685,3617.7,3617.2,0.00170527]
[1641415550572,0.69246685,3617.7,3617.2,0.00170527]
[1641415551781,0.99246685,3617.7,3617.2,0.00170527]
[1641415551979,0.69246685,3617.7,3617.2,0.00170527]
[1641415552181,0.69246685,3617.7,3616.2,0.0073895]
[1641415552582,0.69246685,3617.7,3617.1,0.513307]
[1641415552583,0.00113685,3617.7,3617.1,0.513307]
[1641415552980,0.00113685,3617.7,3617.6,0.444796]
[1641415553628,2.95113685,3617.7,3617.6,0.444796]
[1641415553825,0.00113685,3617.7,3617.6,0.444796]
[1641415554631,6.15113685,3617.7,3617.6,0.444796]
[1641415554834,6.84246685,3617.7,3617.2,3.0691098]
[1641415555030,6.84417212,3617.7,3617.2,3.0691098]
[1641415555230,0.0022737,3617.6,3617.1,0.513307]
[1641415555630,0.00170527,3617.5,3617.1,0.513307]
[1641415556132,0.00113685,3617.4,3617.1,0.94097061]
[1641415556532,0.0022737,3617.6,3617.1,0.513307]
[1641415556934,0.00170527,3617.5,3617.1,0.513307]
[1641415557172,1.71089,3617.4,3617.1,0.513307]
[1641415557377,1.71202685,3617.4,3617.1,0.513307]
[1641415557772,8.85,3617.2,3617.1,0.513307]
[1641415557975,1.0,3617.2,3617.1,0.513307]
[1641415558174,1.69144,3617.2,3617.1,0.513307]
[1641415558574,4.34144,3617.2,3617.1,0.513307]
[1641415558774,1.69144,3617.2,3617.1,0.513307]
[1641415559174,1.69144,3617.2,3617.1,0.9914862]
[1641415559575,0.69144,3617.2,3617.1,0.9914862]
[1641415560182,0.00113685,3617.4,3617.1,0.9914862]
[1641415560381,0.00113685,3617.4,3617.1,10.1160432]
[1641415560580,0.00113685,3617.4,3617.1,9.637864]
[1641415560833,0.32913685,3617.4,3617.1,4.105774]
[1641415561437,1.02060685,3617.4,3617.1,4.105774]
[1641415561630,0.51374265,3617.3,3617.1,4.105774]
[1641415561830,0.69260685,3617.4,3617.1,4.105774]
[1641415562032,0.328,3617.3,3617.1,4.105774]
[1641415562232,0.328,3617.3,3616.9,0.18468777]
[1641415562233,23.89,3617.2,3616.9,0.18468777]
[1641415562533,19.4218553,3617.1,3616.9,0.18468777]
[1641415562730,7.85,3616.9,3616.1,3.75150019]
[1641415562931,7.85,3616.9,3616.0,5.531]
[1641415562932,0.69166,3616.5,3616.0,5.531]
[1641415563132,0.328,3616.4,3616.2,0.00568423]
[1641415563332,0.328,3616.4,3616.0,5.531]
[1641415563333,7.0,3616.3,3616.0,5.531]
[1641415563532,7.0,3616.3,3616.0,0.8391]
[1641415563533,3.19813662,3616.2,3616.0,0.8391]
[1641415563734,7.85,3616.0,3615.2,3.75150019]
[1641415563935,0.69182,3615.6,3614.3,3.75150019]
[1641415564134,0.328,3615.5,3615.3,0.00511581]
[1641415564335,0.328,3615.5,3614.3,3.75150019]
[1641415564336,7.85,3615.4,3614.6,0.49854516]
[1641415564570,0.328,3615.3,3615.1,0.00113685]
[1641415564773,7.85,3615.2,3614.6,0.49854516]
[1641415564976,8.86992,3615.1,3614.3,3.75150019]
[1641415565376,6.05,3615.0,3614.3,3.75150019]
[1641415565577,6.05,3615.0,3614.4,0.00397897]
[1641415565578,0.328,3614.9,3614.4,0.00397897]
[1641415566077,0.69196,3614.7,3614.2,0.58201871]
[1641415566279,0.328,3614.6,3614.2,0.58201871]
[1641415566478,3.24102132,3614.6,3614.3,0.00454739]
[1641415566680,0.328,3614.6,3614.3,0.00454739]
[1641415566879,0.328,3614.6,3614.5,1.37699338]
[1641415567081,0.328,3615.4,3614.3,0.00454739]
[1641415567281,0.328,3615.4,3614.2,0.58201871]
[1641415567282,0.328,3615.4,3614.5,0.00341054]
[1641415567478,0.328,3615.4,3614.9,0.50965308]
[1641415567479,0.00113685,3615.3,3614.9,0.50965308]
[1641415568079,0.00113685,3615.3,3614.3,0.00454739]
[1641415568329,0.69186,3614.8,3614.3,0.00454739]
[1641415568530,0.44186,3614.8,3614.1,0.00568424]
[1641415568728,0.44186,3614.8,3613.0,0.13819997]
[1641415568729,0.44186,3614.8,3613.9,0.00682108]
[1641415569131,0.44186,3614.8,3613.7,0.00795793]
[1641415569334,0.44186,3614.8,3614.0,0.54149395]
[1641415569630,1.44186,3614.8,3614.1,0.00568424]
[1641415569832,1.0,3614.8,3614.1,0.00568424]
[1641415570335,0.328,3614.9,3614.1,0.00568424]
[1641415570735,0.328,3614.9,3614.5,1.21003476]
[1641415571131,0.00113685,3615.3,3614.6,0.00284212]
[1641415571539,0.00113685,3615.3,3615.1,1.21271513]
[1641415571936,0.00113685,3615.3,3615.2,0.58317073]
[1641415572371,0.00113685,3615.3,3615.2,1.48927073]
[1641415572582,0.00113685,3615.3,3615.2,6.83927073]
[1641415573181,1.7030969,3616.0,3615.3,7.85]
[1641415573379,1.7030969,3616.0,3615.7,1.40476977]
[1641415573578,1.7030969,3616.0,3615.8,3.02958178]
[1641415573579,0.00350744,3616.0,3615.8,3.02958178]
[1641415573779,0.00350744,3616.6,3615.7,1.56646977]
[1641415574177,0.00284211,3616.4,3615.7,1.56646977]
[1641415574378,0.00284211,3616.4,3615.8,0.43987909]
[1641415574578,0.00227369,3616.3,3615.8,0.43987909]
[1641415574779,0.00227369,3616.3,3615.8,1.13115599]
[1641415574977,0.00350744,3616.6,3615.8,1.13115599]
[1641415574978,0.00350744,3616.6,3615.9,9.23249]
[1641415575181,0.00350744,3616.6,3616.0,0.69125]
[1641415575382,6.17170527,3616.5,3616.4,1.17518472]
[1641415576222,6.17170527,3616.5,3616.4,1.74760818]
[1641415576422,6.17170527,3616.5,3616.4,0.57242346]
[1641415577427,6.17170527,3616.5,3616.4,4.88918446]
[1641415577627,6.17170527,3616.5,3616.4,4.89995557]
[1641415578028,8.97170527,3616.5,3616.4,4.89995557]
[1641415578230,8.97170527,3616.5,3616.4,1.77278522]
[1641415578830,8.97170527,3616.5,3616.4,4.89995557]
[1641415579027,8.97170527,3616.5,3616.4,1.77278522]
[1641415579809,0.13819997,3617.8,3616.5,7.85]
[1641415580009,0.69118,3618.2,3617.1,0.69117]
[1641415580209,0.00682108,3617.7,3617.1,0.69117]
[1641415580609,0.00625266,3617.6,3617.1,0.69117]
[1641415580817,0.00625266,3617.6,3617.2,0.47436856]
[1641415581112,0.69118,3618.2,3617.2,0.47436856]
[1641415581113,0.00568423,3617.5,3617.2,0.47436856]
[1641415581513,0.00511581,3617.4,3617.2,1.53383592]
[1641415581713,0.00511581,3617.4,3617.3,10.62638278]
[1641415581912,1.0,3618.5,3617.3,10.62638278]
[1641415581913,2.69845222,3618.5,3617.3,10.62638278]
[1641415582112,2.69845222,3618.9,3617.7,0.69103]
[1641415582313,0.01080004,3618.4,3617.8,0.42606231]
[1641415582713,0.01023162,3618.3,3617.8,0.42606231]
[1641415583214,0.0096632,3618.2,3617.9,1.41753859]
[1641415583423,0.0096632,3618.2,3618.0,1.28330058]
[1641415583625,7.17,3619.3,3618.0,1.97424058]
[1641415583626,0.00909477,3618.1,3618.0,1.97424058]
[1641415584423,0.00909477,3618.1,3618.0,7.87424058]
[1641415584623,0.00909477,3618.1,3618.0,1.97424058]
[1641415585425,0.00909477,3618.1,3618.0,0.69094]
[1641415585623,0.00909477,3618.1,3617.9,0.01076619]
[1641415585823,0.00909477,3618.1,3618.0,2.81560774]
[1641415586026,6.17,3619.3,3618.0,2.81560774]
[1641415586027,7.17,3619.3,3618.0,2.81560774]
[1641415586426,0.01534743,3619.2,3618.0,2.81560774]
[1641415586726,7.11625265,3619.3,3618.0,2.81560774]
[1641415586928,7.11625265,3619.3,3618.1,0.00625266]
[1641415586929,0.69108,3618.8,3618.1,0.00625266]
[1641415587374,0.69108,3618.8,3618.1,0.69104]
[1641415587572,0.69108,3618.8,3618.1,0.69729266]
[1641415587872,0.69108,3618.8,3618.4,0.57984027]
[1641415588072,0.69103,3619.2,3618.4,0.57984027]
[1641415588273,0.69103,3619.2,3618.5,0.00397896]
[1641415588677,0.69103,3619.2,3618.5,0.01474307]
[1641415589073,1.38202,3619.5,3618.6,0.00341054]
[1641415589275,1.38202,3619.5,3618.6,1.41262387]
[1641415589473,0.00113685,3619.4,3618.6,1.41262387]
[1641415589676,0.69096,3619.3,3618.7,0.00284212]
[1641415591429,0.00113685,3619.4,3618.7,1.40946978]
[1641415591720,0.00113685,3619.4,3618.8,0.00227369]
[1641415592723,0.00113685,3619.4,3619.3,1.02192304]
[1641415593830,0.00113685,3619.4,3619.3,1.6171035]
[1641415594228,0.00113685,3619.4,3619.3,9.4671035]
[1641415594680,0.00113685,3619.4,3619.3,14.9929035]
[1641415594882,1.0,3621.0,3619.3,14.9929035]
[1641415594883,1.0,3621.0,3619.4,7.85]
[1641415595082,1.0,3621.0,3619.5,0.328]
[1641415595280,6.17,3621.2,3619.5,6.94953357]
[1641415595281,0.00625266,3620.5,3619.5,6.94953357]
[1641415595480,0.00625266,3620.5,3620.4,4.64948565]
[1641415595685,6.17,3621.2,3620.5,0.42590409]
[1641415595985,0.0096632,3621.1,3620.7,0.69041]
[1641415596488,0.00909477,3621.0,3620.8,1.04563699]
[1641415596985,0.00852635,3620.9,3620.7,0.69041]
[1641415597186,0.00852635,3620.9,3620.5,0.42590409]
[1641415597385,6.17,3621.2,3620.6,1.40567948]
[1641415597386,3.19064,3620.7,3620.6,1.40567948]
[1641415597586,0.69064,3620.7,3620.6,1.40567948]
[1641415597786,0.6980295,3620.7,3620.6,1.40567948]
[1641415598186,3.3980295,3620.7,3620.6,1.40567948]
[1641415598824,3.3980295,3620.7,3620.5,0.42590409]
[1641415599224,5.25682108,3620.6,3620.5,0.42590409]
[1641415599825,0.00682108,3620.6,3620.5,0.42590409]
[1641415602668,0.00682108,3620.6,3620.5,3.55005789]
[1641415603367,0.69061,3621.0,3620.5,3.55005789]
[1641415603368,0.65906638,3621.0,3620.5,3.55005789]
[1641415603769,2.80892955,3621.5,3620.9,1.27683727]
[1641415604273,0.00341054,3621.2,3621.1,0.69035]
[1641415604469,0.00341054,3621.2,3621.1,1.19106835]
[1641415605069,0.00341054,3621.2,3621.1,1.20182547]
[1641415605469,0.00341054,3621.2,3621.1,4.32597927]
[1641415605829,1.30214009,3621.5,3621.1,4.32597927]
[1641415606221,0.00113685,3621.4,3621.1,4.32597927]
[1641415606623,0.00113685,3621.4,3621.1,3.63562927]
[1641415607028,0.00113685,3621.4,3621.1,5.01625447]
[1641415607628,0.00113685,3621.4,3621.2,3.1241538]
[1641415608429,0.75731167,3621.4,3621.2,3.1241538]
[1641415610580,0.75731167,3621.4,3621.3,3.96075652]
[1641415610880,0.75731167,3621.4,3621.3,9.48365652]
[1641415611083,0.00113685,3621.4,3621.3,9.48365652]
[1641415611283,0.75596877,3621.4,3621.3,9.48365652]
[1641415611779,0.75596877,3621.4,3621.3,9.49571601]
[1641415611982,0.75596877,3621.4,3621.3,5.54571601]
[1641415612180,0.75596877,3621.4,3621.3,5.53365652]
[1641415612481,0.75596877,3621.4,3621.3,8.65781032]
[1641415612482,0.00113685,3621.4,3621.3,8.65781032]
[1641415615126,0.00113685,3621.4,3621.3,8.60830841]
[1641415615727,1.00113685,3621.4,3621.3,8.60830841]
[1641415616626,1.00113685,3621.4,3621.3,5.48415461]
[1641415617581,1.00113685,3621.4,3621.3,8.60793717]
[1641415617781,1.69166685,3621.4,3621.3,8.60793717]
[1641415618581,0.69166685,3621.4,3621.3,8.60793717]
[1641415619586,9.16966685,3621.4,3621.3,3.08249717]
[1641415619783,8.86966685,3621.4,3621.3,3.08249717]
[1641415619983,2.01966685,3621.4,3620.6,1.40567948]
[1641415620383,1.01966685,3621.4,3621.2,0.55156731]
[1641415620584,4.25,3621.2,3620.7,0.00284212]
[1641415620823,0.69072,3621.0,3620.7,0.00284212]
[1641415621022,0.69072,3621.0,3620.6,0.00341054]
[1641415621427,0.59072,3621.0,3620.6,0.00341054]
[1641415621929,0.59072,3621.0,3620.7,0.43996716]
[1641415622133,1.0,3621.0,3620.9,1.20656058]
[1641415622433,0.69053,3621.3,3620.8,0.00227369]
[1641415622630,0.69053,3621.3,3620.9,0.00170527]
[1641415623030,0.69053,3621.3,3620.8,0.00227369]
[1641415623229,1.01853,3621.3,3620.8,0.00227369]
[1641415623629,1.01853,3621.3,3620.4,1.40567948]
[1641415623630,1.01853,3621.3,3620.4,1.41022687]
[1641415623832,1.01853,3621.3,3620.5,0.00397896]
[1641415624031,4.53919379,3621.2,3620.5,0.00397896]
[1641415624234,0.44937325,3620.2,3620.0,1.40679914]
[1641415624432,0.44937325,3620.2,3619.4,2.81560774]
[1641415624433,3.75,3620.0,3619.4,2.81560774]
[1641415624676,0.328,3619.9,3619.4,2.81560774]
[1641415625372,0.69097,3619.7,3619.4,2.81560774]
[1641415625571,0.69097,3619.7,3619.5,0.51966891]
[1641415625973,0.69097,3619.7,3619.6,0.00511582]
[1641415626377,6.17,3620.8,3619.6,0.00511582]
[1641415626577,6.17,3620.8,3619.4,1.36557493]
[1641415626578,0.69074,3620.1,3619.5,0.00568424]
[1641415626777,6.17,3620.8,3619.6,2.0718807]
[1641415626778,0.00113684,3620.7,3619.6,2.0718807]
[1641415626977,0.00113684,3620.7,3619.6,1.3812191]
[1641415627181,0.00113684,3620.7,3620.6,0.49241791]
[1641415627577,0.69181684,3620.7,3619.7,1.38587739]
[1641415627777,0.69181684,3620.7,3619.7,0.00454739]
[1641415627981,0.69181684,3620.7,3620.3,2.81560774]
[1641415628626,2.38157,3620.6,3620.3,2.81560774]
[1641415629326,2.38157,3620.6,3620.2,2.81560774]
[1641415629525,3.29617729,3620.5,3620.2,2.81560774]
[1641415629727,3.29617729,3620.5,3620.2,1.57534459]
[1641415629728,7.85,3620.4,3620.2,1.57534459]
[1641415629924,3.29617729,3620.5,3619.9,3.75150019]
[1641415629925,13.04446259,3620.3,3619.9,3.75150019]
[1641415630128,13.04446259,3620.3,3619.7,3.74937537]
[1641415630129,7.85,3620.2,3619.7,3.74937537]
[1641415630325,1.71016,3620.1,3620.0,0.00170527]
[1641415630528,1.71016,3620.1,3619.7,2.52737537]
[1641415630726,1.71016,3620.1,3619.8,0.00113685]
[1641415630926,10.92324,3619.9,3619.8,0.00113685]
[1641415631138,0.54532656,3619.4,3618.6,0.43999267]
[1641415631329,1.38217,3619.1,3618.6,0.43999267]
[1641415632782,0.69108,3618.8,3617.9,4.68937524]
[1641415632980,0.55366343,3619.5,3617.9,4.68937524]
[1641415632982,0.328,3618.7,3617.9,4.68937524]
[1641415633180,0.328,3618.7,3618.0,0.01023162]
[1641415633181,0.328,3618.6,3618.0,0.01023162]
[1641415633381,1.328,3618.6,3618.0,0.01023162]
[1641415633782,0.69119,3618.4,3618.0,0.01023162]
[1641415633980,1.01919,3618.4,3618.0,0.01023162]
[1641415634381,3.16031125,3618.3,3618.0,0.01023162]
[1641415634585,0.328,3618.2,3617.7,0.01193689]
[1641415634783,0.69145,3618.0,3617.0,6.22030845]
[1641415634989,19.0065726,3617.9,3617.0,6.22030845]
[1641415635185,19.0065726,3617.9,3617.1,0.00341054]
[1641415635186,16.04,3617.7,3617.1,0.00341054]
[1641415635387,8.32616135,3617.1,3617.0,5.56930845]
[1641415635586,8.32616135,3617.1,3615.7,1.27923942]
[1641415635587,9.59246135,3617.1,3616.8,4.40283565]
[1641415635840,9.59246135,3617.1,3616.4,4.34740845]
[1641415635841,7.85,3616.9,3616.4,4.34740845]
[1641415636036,0.328,3616.8,3616.4,4.34740845]
[1641415636234,7.85,3616.7,3615.5,2.43764882]
[1641415636438,0.54351364,3616.4,3615.6,0.48887514]
[1641415636638,0.328,3616.3,3616.1,0.00568424]
[1641415637039,0.328,3616.3,3615.5,2.43764882]
[1641415637040,0.328,3616.3,3615.6,0.00852635]
[1641415637241,1.0,3615.8,3615.6,0.00852635]
[1641415637440,1.01972,3615.7,3615.6,0.00852635]
[1641415637743,1.01972,3615.7,3615.2,0.01080005]
[1641415638340,1.01972,3615.7,3615.5,0.42930232]
[1641415638640,1.01972,3615.7,3615.6,0.00852635]
[1641415638841,0.328,3615.7,3615.6,0.00852635]
[1641415640089,0.69174,3615.6,3615.4,0.0096632]
[1641415640285,7.928,3615.5,3615.4,0.0096632]
[1641415640482,7.928,3615.5,3615.0,3.75432809]
[1641415640483,4.35,3615.4,3615.0,0.001]
[1641415640686,0.628,3615.3,3615.0,0.001]
[1641415640880,18.05193,3615.3,3615.2,0.00113685]
[1641415641080,18.05193,3615.3,3614.7,3.75332809]
[1641415641081,2.27835987,3615.3,3614.7,3.75332809]
[1641415641281,1.0,3615.2,3614.7,3.75332809]
[1641415641481,0.69196,3615.0,3614.8,0.00227369]
[1641415641681,5.05,3614.8,3614.7,3.75332809]
[1641415641882,5.378,3614.8,3613.6,3.75332809]
[1641415642080,5.678,3614.8,3613.6,3.75332809]
[1641415642286,1.0,3614.7,3613.7,0.00625266]
[1641415642485,0.69205,3614.2,3613.7,0.00625266]
[1641415642685,0.52701886,3613.9,3613.7,0.00625266]
[1641415642888,0.328,3613.8,3613.7,0.00625266]
[1641415643085,4.678,3613.8,3613.7,0.00625266]
[1641415643328,0.328,3613.8,3613.7,0.00625266]
[1641415643526,0.328,3613.8,3613.5,0.00738951]
[1641415643930,1.02018,3613.8,3613.5,0.00738951]
[1641415645535,1.02018,3613.8,3613.7,0.59104287]
[1641415645734,1.02018,3613.8,3613.5,0.00738951]
[1641415646338,0.328,3613.8,3613.5,0.00738951]
[1641415646938,0.328,3614.3,3613.5,0.00738951]
[1641415647175,0.328,3614.3,3614.2,0.47449841]
[1641415647576,0.328,3614.3,3614.2,0.00341054]
[1641415647577,0.0001,3614.3,3614.2,0.00341054]
[1641415647778,1.16261264,3614.8,3614.2,0.00341054]
[1641415648080,0.328,3614.7,3614.2,0.00341054]
[1641415648280,1.16261264,3614.8,3613.3,0.0128748]
[1641415648480,1.16261264,3614.8,3613.8,0.6917294]
[1641415648481,0.00227369,3614.6,3613.8,0.6917294]
[1641415648682,1.16261264,3614.8,3613.7,0.00284212]
[1641415648683,0.00284212,3614.7,3613.9,1.22534814]
[1641415648884,1.16261264,3614.8,3613.9,1.22534814]
[1641415648885,0.00170527,3614.5,3613.9,2.61042341]
[1641415649081,0.00227369,3614.6,3614.0,0.5232809]
[1641415649284,0.00113684,3614.4,3614.0,1.2150109]
[1641415649482,0.00170527,3614.5,3614.0,1.2150109]
[1641415649682,0.00284212,3614.7,3614.3,0.69171]
[1641415649888,0.00113684,3614.4,3614.3,0.69171]
[1641415650088,3.50003371,3615.6,3614.0,2.5983609]
[1641415650089,0.00227369,3614.6,3614.5,1.32449826]
[1641415650290,3.01640406,3615.5,3614.0,0.5232809]
[1641415650291,0.00113684,3614.4,3614.0,0.5232809]
[1641415650488,0.00227369,3614.6,3614.0,0.00113685]
[1641415650690,0.00682108,3615.4,3614.0,0.00113685]
[1641415650929,3.01640406,3615.5,3614.0,0.00113685]
[1641415650930,0.00170527,3614.5,3614.0,0.00113685]
[1641415651136,2.90785983,3615.5,3614.0,0.00113685]
[1641415651137,0.00682108,3615.4,3614.0,0.00113685]
[1641415651332,0.00113684,3614.4,3614.3,1.27431305]
[1641415651532,0.6918,3615.2,3614.8,0.57856264]
[1641415654137,4.13363685,3615.5,3613.9,0.00170527]
[1641415654138,0.328,3615.1,3613.9,0.00170527]
[1641415654339,0.69193,3614.5,3613.9,0.00170527]
[1641415654584,0.69193,3614.5,3613.7,2.81580582]
[1641415654585,0.69193,3614.5,3613.8,0.0022737]
[1641415655000,1.38386,3614.7,3613.5,0.04152]
[1641415655001,0.94750031,3613.7,3613.5,0.04152]
[1641415655192,0.94750031,3613.7,3612.9,5.43115898]
[1641415655193,8.178,3613.6,3612.9,5.43115898]
[1641415655394,8.178,3613.6,3612.9,4.04365898]
[1641415655395,0.69219,3613.3,3612.9,4.04365898]
[1641415655596,10.85924806,3613.2,3613.1,1.6548437]
[1641415655793,1.1548,3613.1,3612.7,2.70931044]
[1641415656123,4.098,3612.8,3612.0,6.25774663]
[1641415656326,4.098,3612.8,3611.6,2.43764882]
[1641415656327,4.098,3612.4,3611.6,2.43764882]
[1641415656528,4.098,3612.4,3612.1,0.00966319]
[1641415656529,9.92779,3612.2,3612.1,0.00966319]
[1641415656692,9.92779,3612.2,3609.6,10.96055637]
[1641415656693,4.35,3612.0,3609.6,10.96055637]
[1641415656897,16.04,3611.8,3611.7,0.0022737]
[1641415657095,0.328,3611.8,3611.7,0.0022737]
[1641415657295,0.328,3611.8,3611.1,0.00568424]
[1641415657494,0.69246,3611.6,3611.1,0.00568424]
[1641415657693,0.328,3611.5,3611.1,0.00568424]
[1641415658528,0.328,3611.5,3611.1,3.04801408]
[1641415658928,0.328,3611.5,3611.2,0.00627492]
[1641415659426,0.328,3611.5,3611.3,0.00454739]
[1641415659627,0.328,3611.5,3611.4,0.49232476]
[1641415660026,0.328,3611.5,3611.4,0.49630373]
[1641415660027,1.02048,3611.5,3611.4,0.49630373]
[1641415660430,0.328,3611.5,3611.4,8.34630373]
[1641415660634,1.63685802,3612.1,3611.4,9.97959522]
[1641415660833,1.30885802,3612.1,3611.9,1.09356639]
[1641415661133,1.0,3612.3,3612.0,7.85]
[1641415661436,1.0,3612.3,3611.9,1.74826639]
[1641415661437,0.328,3613.1,3612.2,7.85]
[1641415661636,1.74770381,3613.0,3612.2,7.86289615]
[1641415661832,1.75281962,3613.0,3612.2,7.86289615]
[1641415662089,1.75281962,3613.0,3612.3,0.58764608]
[1641415662090,0.00454738,3612.9,3612.3,0.58764608]
[1641415662293,0.00454738,3612.9,3612.7,1.39307312]
[1641415662489,0.7653513,3613.7,3612.7,9.24307312]
[1641415662695,0.7653513,3613.7,3613.1,0.6918]
[1641415662895,0.00454739,3613.6,3613.1,1.61189997]
[1641415663294,4.33608971,3614.8,3613.1,1.61189997]
[1641415663494,4.33608971,3614.8,3613.2,8.40587369]
[1641415663694,0.00568424,3614.5,3613.7,0.69169]
[1641415664099,4.33608971,3614.8,3613.7,0.69169]
[1641415664297,4.33040595,3614.8,3613.8,5.5339]
[1641415664499,5.82567938,3615.4,3613.9,1.02874307]
[1641415664500,0.00170528,3614.7,3613.9,1.02874307]
[1641415664698,0.00170528,3614.7,3613.9,1.03158518]
[1641415664897,3.48251574,3615.4,3614.0,0.00227369]
[1641415664898,0.00113685,3614.6,3614.0,0.00227369]
[1641415665097,0.00113685,3614.6,3614.0,0.47460043]
[1641415665298,0.00511582,3615.3,3614.0,0.47460043]
[1641415665498,0.00511582,3615.3,3615.2,0.52847891]
[1641415665698,3.7845,3615.7,3615.2,0.52847891]
[1641415666120,0.00682109,3615.6,3615.2,0.52847891]
[1641415666526,0.00625266,3615.5,3614.1,0.00170527]
[1641415666732,0.328,3615.4,3614.1,0.00170527]
[1641415666926,1.3838,3615.0,3614.0,0.00227369]
[1641415667127,0.328,3614.9,3613.9,0.00284211]
[1641415667328,0.33084212,3614.9,3613.9,0.00284211]
[1641415667529,0.0022737,3614.8,3613.9,0.00284211]
[1641415667728,0.0022737,3614.8,3614.0,1.3120067]
[1641415667928,0.00170528,3614.7,3614.0,1.3120067]
[1641415668131,0.00170528,3614.7,3614.1,0.00170527]
[1641415668329,1.01977,3615.3,3614.1,0.00170527]
[1641415668330,0.00113685,3614.6,3614.1,0.00170527]
[1641415668535,0.00113685,3614.6,3614.2,0.46496941]
[1641415668730,0.00454739,3615.2,3614.6,1.28898863]
[1641415669234,0.6448,3614.7,3614.6,1.28898863]
[1641415669432,0.6448,3614.7,3614.2,0.46496941]
[1641415669675,0.64650528,3614.7,3614.2,0.46496941]
[1641415669875,0.00113685,3614.6,3614.2,0.46496941]
[1641415670679,0.00113685,3614.6,3614.3,1.04893907]
[1641415670982,0.00113685,3614.6,3614.2,0.46496941]
[1641415670983,0.328,3614.5,3614.2,0.46496941]
[1641415671179,1.38394,3614.4,3614.2,0.46496941]
[1641415671383,0.328,3614.3,3614.2,0.46496941]
[1641415671780,0.328,3614.3,3614.2,0.46610625]
[1641415673081,0.328,3614.3,3613.8,5.5339]
[1641415673322,0.432,3614.3,3613.8,5.5339]
[1641415673524,0.328,3614.3,3614.2,6.7726417]
[1641415673729,0.6920014,3614.5,3614.2,6.7726417]
[1641415673730,0.1048,3614.5,3614.2,6.7726417]
[1641415673923,0.6448,3614.3,3614.2,6.7726417]
[1641415674122,3.48365259,3614.6,3614.2,6.7726417]
[1641415674123,0.00113685,3614.4,3614.2,6.7726417]
[1641415674623,0.00170527,3614.5,3614.3,0.53785962]
[1641415675029,0.1136,3615.3,3614.3,0.53785962]
[1641415675030,0.1144,3614.9,3614.6,5.85]
[1641415675230,0.4880959,3615.2,3614.6,5.85]
[1641415675428,0.00284212,3614.9,3614.6,5.85]
[1641415675829,0.0022737,3614.8,3614.6,5.85]
[1641415676030,0.0022737,3614.8,3614.4,0.01246299]
[1641415676031,0.0022737,3614.8,3614.7,7.03407243]
[1641415676229,1.31103194,3615.0,3614.8,1.39194217]
[1641415676428,1.31103194,3615.0,3614.9,4.5683463]
[1641415676630,1.31103194,3615.0,3614.9,0.5183463]
[1641415676831,1.31103194,3615.0,3614.7,0.91020629]
[1641415676832,1.42223194,3615.0,3614.7,0.91020629]
[1641415677080,1.42223194,3615.0,3613.4,2.69936608]
[1641415677081,1.76863194,3615.0,3613.9,1.35170986]
[1641415677281,0.69202,3614.4,3613.9,1.35170986]
[1641415677480,0.328,3614.3,3614.0,0.00227369]
[1641415677680,5.742066,3614.2,3613.8,1.34920828]
[1641415677983,0.58510992,3614.0,3613.8,1.34920828]
[1641415678179,1.83634,3614.1,3613.4,2.69936608]
[1641415678180,0.328,3613.9,3613.4,2.69936608]
[1641415678380,0.69204,3613.7,3613.4,2.69936608]
[1641415678580,0.328,3613.6,3613.5,0.00284212]
[1641415678983,1.3843,3614.1,3613.1,1.34532135]
[1641415678984,1.4907,3614.1,3613.1,1.34532135]
[1641415679186,0.328,3614.0,3613.2,0.00454739]
[1641415679585,0.69204,3613.2,3612.4,0.00909477]